fUSD/lending_fUSD_20260116
["ID","MTS","AMOUNT","RATE_DAILY","PERIOD"]
[402119690,1768529449800,-500.0,0.00035616,10]
[402119691,1768529449810,-507.1309657,0.00035616,10]
[402119692,1768529449819,-500.0,0.00035616,10]
[402119693,1768529449834,-500.0,0.00035616,10]
[402119694,1768529449855,-500.0,0.00035616,10]
[402119695,1768529449873,-508.10391466,0.00035616,10]
[402119696,1768529449885,-500.0,0.00035616,10]
[402119697,1768529449897,-669.7,0.00035616,10]
[402119698,1768529449910,-500.0,0.00035616,10]
[402119699,1768529449920,-500.0,0.00035616,10]
[402119700,1768529449931,-616.56675438,0.00035616,10]
[402119701,1768529449942,-500.0,0.00035616,10]
[402119702,1768529449955,-503.21403048,0.00035616,10]
[402119703,1768529449966,-504.5695906,0.00035616,10]
[402119704,1768529449978,-507.09005788,0.00035616,10]
[402119705,1768529449989,-500.0,0.00035616,10]
[402119706,1768529450000,-1223.78,0.00035616,10]
[402119707,1768529450011,-411.23478681,0.00035616,10]
[402119708,1768529450022,-500.0,0.00035616,10]
[402119709,1768529450032,-535.22735484,0.00035616,10]
[402119710,1768529450042,-658.51,0.00035616,10]
[402119711,1768529450052,-500.0,0.00035616,10]
[402119712,1768529450061,-500.7358664,0.00035616,10]
[402119713,1768529450071,-500.0,0.00035616,10]
[402119714,1768529450081,-500.0,0.00035616,10]
[402119715,1768529450091,-711.6,0.00035616,10]
[402119716,1768529450103,-500.0,0.00035616,10]
[402119717,1768529450112,-503.86186339,0.00035616,10]
[402119718,1768529450122,-500.0,0.00035616,10]
[402119719,1768529450131,-814.35,0.00035616,10]
[402119720,1768529450141,-611.72885941,0.00035616,10]
[402119721,1768529450151,-500.0,0.00035616,10]
[402119722,1768529450161,-553.88,0.00035616,10]
[402119723,1768529450171,-500.0,0.00035616,10]
[402119724,1768529450184,-834.24,0.00035616,10]
[402119725,1768529450193,-500.0,0.00035616,10]
[402119726,1768529450203,-500.0,0.00035616,10]
[402119727,1768529450212,-506.39921459,0.00035616,10]
[402119728,1768529450222,-708.67,0.00035616,10]
[402119729,1768529450232,-500.0,0.00035616,10]
[402119730,1768529450242,-500.0,0.00035616,10]
[402119731,1768529450253,-500.0,0.00035616,10]
[402119732,1768529450263,-500.0,0.00035616,10]
[402119733,1768529450273,-500.0,0.00035616,10]
[402119734,1768529450282,-566.05853341,0.00035616,10]
[402119735,1768529450292,-500.0,0.00035616,10]
[402119736,1768529450301,-975.01,0.00035616,10]
[402119737,1768529450310,-844.67,0.00035616,10]
[402119738,1768529450320,-500.0,0.00035616,10]
[402119739,1768529450329,-475.29608508,0.00035616,10]
[402119740,1768529450338,-509.05169724,0.00035616,10]
[402119741,1768529450348,-500.0,0.00035616,10]
[402119742,1768529450357,-500.0,0.00035616,10]
[402119743,1768529450366,-502.32953563,0.00035616,10]
[402119744,1768529450376,-565.52,0.00035616,10]
[402119745,1768529450385,-500.0,0.00035616,10]
[402119746,1768529450395,-507.61127337,0.00035616,10]
[402119747,1768529450404,-500.0,0.00035616,10]
[402119748,1768529450413,-500.0,0.00035616,10]
[402119749,1768529450423,-484.89014911,0.00035616,10]
[402119750,1768529450432,-500.0,0.00035616,10]
[402119751,1768529450441,-710.69,0.00035616,10]
[402119752,1768529450451,-470.94626667,0.00035616,10]
[402119753,1768529450461,-500.0,0.00035616,10]
[402119754,1768529450470,-500.0,0.00035616,10]
[402119755,1768529450480,-500.0,0.00035616,10]
[402119756,1768529450489,-522.99655894,0.00035616,10]
[402119757,1768529450500,-500.0,0.00035616,10]
[402119758,1768529450509,-500.0,0.00035616,10]
[402119759,1768529450519,-500.0,0.00035616,10]
[402119760,1768529450528,-502.1242434,0.00035616,10]
[402119761,1768529450537,-501.40725919,0.00035616,10]
[402119762,1768529450547,-500.0,0.00035616,10]
[402119763,1768529450556,-500.0,0.00035616,10]
[402119764,1768529450566,-500.0,0.00035616,10]
[402119765,1768529450575,-643.91,0.00035616,10]
[402119766,1768529450585,-500.0,0.00035616,10]
[402119767,1768529450595,-540.57,0.00035616,10]
[402119768,1768529450604,-995.51,0.00035616,10]
[402119769,1768529450614,-500.0,0.00035616,10]
[402119770,1768529450623,-500.0,0.00035616,10]
[402119771,1768529450633,-658.75,0.00035616,10]
[402119772,1768529450642,-798.75,0.00035616,10]
[402119773,1768529450651,-500.0,0.00035616,10]
[402119774,1768529450661,-505.19278608,0.00035616,10]
[402119775,1768529450670,-730.02,0.00035616,10]
[402119776,1768529450679,-500.0,0.00035616,10]
[402119777,1768529450689,-500.0,0.00035616,120]
[402119778,1768529450698,-501.96334426,0.00035616,10]
[402119779,1768529450707,-500.0,0.00035616,10]
[402119780,1768529450716,-1013.74340533,0.00035616,10]
[402119781,1768529450726,-564.51,0.00035616,10]
[402119782,1768529450736,-1111.81,0.00035616,10]
[402119783,1768529450746,-500.0,0.00035616,10]
[402119784,1768529450756,-407.96741056,0.00035616,10]
[402119785,1768529450765,-505.941903,0.00035616,30]
[402119786,1768529450775,-785.73,0.00035616,10]
[402119787,1768529450785,-500.0,0.00035616,10]
[402119788,1768529450795,-500.0,0.00035616,10]
[402119789,1768529450804,-501.79441245,0.00035616,10]
[402119790,1768529450814,-500.0,0.00035616,10]
[402119791,1768529450823,-500.0,0.00035616,10]
[402119792,1768529450832,-500.0,0.00035616,10]
[402119793,1768529450842,-585.22707887,0.00035616,10]
[402119794,1768529450852,-679.02,0.00035616,10]
[402119795,1768529450868,-500.0,0.00035616,10]
[402119796,1768529450878,-500.0,0.00035616,10]
[402119797,1768529450890,-507.07589851,0.00035616,10]
[402119798,1768529450900,-1193.62,0.00035616,10]
[402119799,1768529450911,-553.99,0.00035616,10]
[402119800,1768529450921,-505.05744659,0.00035616,10]
[402119801,1768529450931,-535.25426924,0.00035616,10]
[402119802,1768529450941,-503.23896665,0.00035616,10]
[402119803,1768529450950,-506.63912405,0.00035616,10]
[402119804,1768529450961,-500.0,0.00035616,10]
[402119805,1768529450970,-501.50208554,0.00035616,10]
[402119806,1768529450980,-503.55597297,0.00035616,10]
[402119807,1768529451106,-502.12185486,0.00035616,10]
[402119808,1768529451116,-500.0,0.00035616,10]
[402119809,1768529451125,-500.0,0.00035616,10]
[402119810,1768529451135,-526.9922675,0.00035616,10]
[402119811,1768529451144,-500.0,0.00035616,10]
[402119812,1768529451153,-504.41278304,0.00035616,10]
[402119813,1768529451163,-500.0,0.00035616,10]
[402119814,1768529451173,-167.31286308,0.00035616,10]
[402119815,1768529451184,-816.15,0.00035616,10]
[402119816,1768529451194,-503.63310154,0.00035616,10]
[402119817,1768529451203,-496.0,0.00035616,10]
[402119818,1768529451212,-500.0,0.00035616,10]
[402119819,1768529451223,-500.0,0.00035616,10]
[402119820,1768529451232,-1027.88,0.00035616,10]
[402119821,1768529451242,-500.0,0.00035616,10]
[402119822,1768529451252,-500.0,0.00035616,10]
[402119823,1768529451261,-500.0,0.00035616,10]
[402119824,1768529451270,-500.0,0.00035616,10]
[402119825,1768529451279,-500.0,0.00035616,10]
[402119826,1768529451288,-1337.07,0.00035616,10]
[402119827,1768529451297,-1563.91,0.00035616,10]
[402119828,1768529451306,-509.93072879,0.00035616,10]
[402119829,1768529451315,-548.97,0.00035616,10]
[402119830,1768529451324,-500.0,0.00035616,10]
[402119831,1768529451333,-1053.84,0.00035616,2]
[402119832,1768529451342,-616.44926918,0.00035616,10]
[402119833,1768529451351,-500.0,0.00035616,10]
[402119834,1768529451360,-500.0,0.00035616,10]
[402119835,1768529451369,-500.0,0.00035616,10]
[402119836,1768529451378,-1395.31,0.00035616,10]
[402119837,1768529451387,-500.0,0.00035616,10]
[402119838,1768529451396,-621.0,0.00035616,10]
[402119839,1768529451405,-500.0,0.00035616,10]
[402119840,1768529451414,-500.0,0.00035616,10]
[402119841,1768529451424,-500.0,0.00035616,10]
[402119842,1768529451433,-500.0,0.00035616,10]
[402119843,1768529451442,-500.0,0.00035616,10]
[402119844,1768529451451,-504.16546917,0.00035616,10]
[402119845,1768529451460,-500.0,0.00035616,10]
[402119846,1768529451470,-500.0,0.00035616,10]
[402119847,1768529451479,-875.24,0.00035616,10]
[402119848,1768529451488,-526.48,0.00035616,10]
[402119849,1768529451497,-511.04487956,0.00035616,10]
[402119850,1768529451506,-572.44153588,0.00035616,10]
[402119851,1768529451514,-500.0,0.00035616,10]
[402119852,1768529451523,-505.43554778,0.00035616,10]
[402119853,1768529451532,-500.0,0.00035616,10]
[402119854,1768529451541,-500.0,0.00035616,10]
[402119855,1768529451550,-500.0,0.00035616,10]
[402119856,1768529451560,-595.45,0.00035616,10]
[402119857,1768529451569,-1146.99,0.00035616,10]
[402119858,1768529451578,-606.54,0.00035616,10]
[402119859,1768529451587,-512.93,0.00035616,10]
[402119860,1768529451605,-518.04212425,0.00035616,10]
[402119861,1768529451615,-500.0,0.00035616,10]
[402119862,1768529451624,-205.95415029,0.00035616,10]
[402119863,1768529451633,-500.0,0.00035616,10]
[402119864,1768529451642,-519.63,0.00035616,10]
[402119865,1768529451651,-673.27,0.00035616,10]
[402119866,1768529451660,-500.0,0.00035616,10]
[402119867,1768529451670,-500.0,0.00035616,10]
[402119868,1768529451680,-500.0,0.00035616,10]
[402119869,1768529451689,-500.0,0.00035616,10]
[402119870,1768529451700,-151.0,0.00035616,31]
[402119871,1768529451711,-500.0,0.00035616,10]
[402119872,1768529451720,-223.236399,0.00035616,31]
[402119873,1768529451729,-506.58872136,0.00035616,10]
[402119874,1768529451738,-504.71818989,0.00035616,10]
[402119875,1768529451747,-1530.07,0.00035616,10]
[402119876,1768529451756,-500.0,0.00035616,10]
[402119877,1768529451765,-603.62905785,0.00035616,10]
[402119878,1768529451775,-500.0,0.00035616,10]
[402119879,1768529451784,-946.1,0.00035616,10]
[402119880,1768529451793,-500.0,0.00035616,10]
[402119881,1768529451802,-500.0,0.00035616,10]
[402119882,1768529451811,-500.0,0.00035616,10]
[402119883,1768529451821,-585.05,0.00035616,10]
[402119884,1768529451830,-502.37959022,0.00035616,10]
[402119885,1768529451840,-502.39046586,0.00035616,10]
[402119886,1768529451849,-500.0,0.00035616,10]
[402119887,1768529451858,-761.81,0.00035616,10]
[402119888,1768529451868,-680.62,0.00035616,10]
[402119889,1768529451889,-500.0,0.00035616,10]
[402119890,1768529451899,-795.8,0.00035616,10]
[402119891,1768529451909,-505.40151411,0.00035616,10]
[402119892,1768529451918,-517.10024475,0.00035616,10]
[402119893,1768529451928,-502.35346626,0.00035616,10]
[402119894,1768529451938,-500.0,0.00035616,10]
[402119895,1768529451948,-500.0,0.00035616,10]
[402119896,1768529451957,-500.0,0.00035616,10]
[402119897,1768529451967,-508.32239457,0.00035616,10]
[402119898,1768529451976,-573.52,0.00035616,10]
[402119899,1768529451986,-1111.0,0.00035616,10]
[402119900,1768529451995,-151.0,0.00035616,3]
[402119901,1768529452004,-500.0,0.00035616,10]
[402119902,1768529452013,-151.0,0.00035616,3]
[402119903,1768529452022,-500.0,0.00035616,10]
[402119904,1768529452033,-644.47,0.00035616,10]
[402119905,1768529452042,-618.96496564,0.00035616,10]
[402119906,1768529452051,-500.0,0.00035616,10]
[402119907,1768529452060,-500.0,0.00035616,10]
[402119908,1768529452069,-151.0,0.00035616,3]
[402119909,1768529452079,-151.0,0.00035616,3]
[402119910,1768529452088,-579.06,0.00035616,10]
[402119911,1768529452097,-151.0,0.00035616,3]
[402119912,1768529452106,-297.239429,0.00035616,3]
[402119913,1768529452115,-501.0284698,0.00035616,10]
[402119914,1768529452124,-505.8112543,0.00035616,10]
[402119915,1768529452133,-500.0,0.00035616,10]
[402119916,1768529452142,-500.0,0.00035616,10]
[402119917,1768529452152,-844.66,0.00035616,10]
[402119918,1768529452161,-1024.71,0.00035616,10]
[402119919,1768529452170,-500.0,0.00035616,10]
[402119920,1768529452182,-500.0,0.00035616,10]
[402119921,1768529452191,-500.0,0.00035616,10]
[402119922,1768529452200,-500.0,0.00035616,10]
[402119923,1768529452209,-2242.23,0.00035616,10]
[402119924,1768529452219,-504.42676899,0.00035616,10]
[402119925,1768529452228,-537.68,0.00035616,10]
[402119926,1768529452237,-506.86975015,0.00035616,10]
[402119927,1768529452247,-501.9550499,0.00035616,10]
[402119928,1768529452255,-500.0,0.00035616,10]
[402119929,1768529452264,-638.35,0.00035616,10]
[402119930,1768529452274,-500.0,0.00035616,10]
[402119931,1768529452282,-1050.37,0.00035616,10]
[402119932,1768529452291,-500.0,0.00035616,10]
[402119933,1768529452300,-500.0,0.00035616,10]
[402119934,1768529452310,-503.92721562,0.00035616,10]
[402119935,1768529452319,-500.0,0.00035616,10]
[402119936,1768529452328,-541.48,0.00035616,10]
[402119937,1768529452337,-513.74448392,0.00035616,10]
[402119938,1768529452347,-696.61,0.00035616,10]
[402119939,1768529452356,-505.50051626,0.00035616,10]
[402119940,1768529452364,-500.0,0.00035616,10]
[402119941,1768529452374,-244.31666338,0.00035616,10]
[402119942,1768529452383,-768.31,0.00035616,10]
[402119943,1768529452392,-521.5414601,0.00035616,10]
[402119944,1768529452402,-814.57,0.00035616,10]
[402119945,1768529452411,-800.0,0.00035616,120]
[402119946,1768529452420,-500.0,0.00035616,10]
[402119947,1768529452429,-500.0,0.00035616,10]
[402119948,1768529452438,-500.0,0.00035616,10]
[402119949,1768529452447,-908.75,0.00035616,10]
[402119950,1768529452456,-500.0,0.00035616,10]
[402119951,1768529452466,-500.0,0.00035616,10]
[402119952,1768529452476,-561.57,0.00035616,10]
[402119953,1768529452485,-500.0,0.00035616,10]
[402119954,1768529452494,-500.0,0.00035616,10]
[402119955,1768529452503,-571.19,0.00035616,10]
[402119956,1768529452512,-500.0,0.00035616,10]
[402119957,1768529452522,-500.0,0.00035616,10]
[402119958,1768529452535,-500.0,0.00035616,10]
[402119959,1768529452544,-500.0,0.00035616,10]
[402119960,1768529452553,-743.24,0.00035616,10]
[402119961,1768529452562,-577.65570216,0.00035616,10]
[402119962,1768529452572,-500.0,0.00035616,10]
[402119963,1768529452581,-500.0,0.00035616,10]
[402119964,1768529452591,-508.82684995,0.00035616,10]
[402119965,1768529452600,-500.0,0.00035616,10]
[402119966,1768529452609,-500.0,0.00035616,10]
[402119967,1768529452619,-643.54,0.00035616,10]
[402119968,1768529452627,-235.630238,0.00035616,10]
[402119969,1768529452637,-505.07091006,0.00035616,10]
[402119970,1768529452646,-628.54,0.00035616,10]
[402119971,1768529452655,-500.0,0.00035616,10]
[402119972,1768529452665,-615.74742609,0.00035616,10]
[402119973,1768529452674,-498.70739336,0.00035616,10]
[402119974,1768529452683,-500.0,0.00035616,10]
[402119975,1768529452693,-421.33739997,0.00035616,10]
[402119976,1768529452702,-592.9,0.00035616,10]
[402119977,1768529452711,-591.02,0.00035616,10]
[402119978,1768529452720,-500.0,0.00035616,10]
[402119979,1768529452730,-507.34374872,0.00035616,10]
[402119980,1768529452740,-507.967531,0.00035616,10]
[402119981,1768529452750,-500.0,0.00035616,10]
[402119982,1768529452760,-1133.3,0.00035616,10]
[402119983,1768529452771,-500.0,0.00035616,10]
[402119984,1768529452781,-500.0,0.00035616,10]
[402119985,1768529452791,-511.78819568,0.00035616,10]
[402119986,1768529452801,-500.0,0.00035616,10]
[402119987,1768529452811,-500.0,0.00035616,10]
[402119988,1768529452822,-500.0,0.00035616,10]
[402119989,1768529452832,-500.0,0.00035616,10]
[402119990,1768529452842,-500.0,0.00035616,10]
[402119991,1768529452852,-687.79,0.00035616,10]
[402119992,1768529452862,-1114.69,0.00035616,10]
[402119993,1768529452872,-658.76,0.00035616,10]
[402119994,1768529452882,-500.0,0.00035616,10]
[402119995,1768529452892,-675.6,0.00035616,10]
[402119996,1768529452902,-510.73859166,0.00035616,10]
[402119997,1768529452913,-500.0,0.00035616,10]
[402119998,1768529452923,-500.0,0.00035616,10]
[402119999,1768529452932,-694.88,0.00035616,10]
[402120000,1768529452942,-521.39,0.00035616,10]
[402120001,1768529452952,-500.0,0.00035616,10]
[402120002,1768529452962,-506.03462388,0.00035616,10]
[402120003,1768529452972,-1033.86,0.00035616,10]
[402120004,1768529452982,-500.0,0.00035616,10]
[402120005,1768529452993,-1182.98,0.00035616,10]
[402120006,1768529453003,-500.0,0.00035616,10]
[402120007,1768529453013,-502.76030001,0.00035616,10]
[402120008,1768529453023,-500.0,0.00035616,10]
[402120009,1768529453034,-504.07087004,0.00035616,10]
[402120010,1768529453045,-500.05362701,0.00035616,10]
[402120011,1768529453055,-500.0,0.00035616,10]
[402120012,1768529453066,-1715.22,0.00035616,10]
[402120013,1768529453077,-500.0,0.00035616,10]
[402120014,1768529453087,-500.0,0.00035616,10]
[402120015,1768529453098,-503.78489875,0.00035616,10]
[402120016,1768529453108,-528.67,0.00035616,10]
[402120017,1768529453119,-501.26554391,0.00035616,10]
[402120018,1768529453129,-1115.87,0.00035616,10]
[402120019,1768529453139,-500.0,0.00035616,10]
[402120020,1768529453150,-530.23092791,0.00035616,10]
[402120021,1768529453161,-500.0,0.00035616,10]
[402120022,1768529453172,-507.71876285,0.00035616,10]
[402120023,1768529453184,-500.0,0.00035616,10]
[402120024,1768529453194,-533.12806556,0.00035616,10]
[402120025,1768529453204,-511.96657785,0.00035616,10]
[402120026,1768529453214,-500.0,0.00035616,10]
[402120027,1768529453226,-515.05829728,0.00035616,10]
[402120028,1768529453236,-653.74,0.00035616,10]
[402120029,1768529453246,-500.0,0.00035616,10]
[402120030,1768529453258,-579.00834116,0.00035616,10]
[402120031,1768529453268,-500.0,0.00035616,10]
[402120032,1768529453279,-688.21,0.00035616,10]
[402120033,1768529453294,-1247.89,0.00035616,10]
[402120034,1768529453305,-500.0,0.00035616,10]
[402120035,1768529453315,-500.0,0.00035616,10]
[402120036,1768529453326,-504.33754609,0.00035616,10]
[402120037,1768529453337,-300.0,0.00035616,10]
[402120038,1768529453348,-500.0,0.00035616,10]
[402120039,1768529453359,-871.33,0.00035616,10]
[402120040,1768529453369,-500.0,0.00035616,10]
[402120041,1768529453379,-500.0,0.00035616,10]
[402120042,1768529453390,-500.0,0.00035616,10]
[402120043,1768529453400,-632.73,0.00035616,10]
[402120044,1768529453410,-2074.51,0.00035616,10]
[402120045,1768529453421,-500.0,0.00035616,10]
[402120046,1768529453431,-601.75,0.00035616,10]
[402120047,1768529453441,-500.0,0.00035616,10]
[402120048,1768529453451,-746.46,0.00035616,10]
[402120049,1768529453461,-500.0,0.00035616,10]
[402120050,1768529453472,-500.0,0.00035616,10]
[402120051,1768529453482,-500.0,0.00035616,10]
[402120052,1768529453492,-704.78,0.00035616,10]
[402120053,1768529453502,-500.0,0.00035616,10]
[402120054,1768529453512,-826.43,0.00035616,10]
[402120055,1768529453522,-500.0,0.00035616,10]
[402120056,1768529453532,-500.0,0.00035616,10]
[402120057,1768529453542,-500.0,0.00035616,10]
[402120058,1768529453552,-557.47795454,0.00035616,10]
[402120059,1768529453563,-500.0,0.00035616,10]
[402120060,1768529453574,-565.67534339,0.00035616,10]
[402120061,1768529453584,-771.84,0.00035616,10]
[402120062,1768529453595,-712.11,0.00035616,10]
[402120063,1768529453606,-504.30881195,0.00035616,10]
[402120064,1768529453616,-500.0,0.00035616,10]
[402120065,1768529453627,-533.81907892,0.00035616,10]
[402120066,1768529453637,-1267.39,0.00035616,10]
[402120067,1768529453647,-500.0,0.00035616,10]
[402120068,1768529453657,-500.0,0.00035616,10]
[402120069,1768529453667,-500.04472716,0.00035616,10]
[402120070,1768529453677,-594.78,0.00035616,10]
[402120071,1768529453687,-500.0,0.00035616,10]
[402120072,1768529453698,-500.0,0.00035616,10]
[402120073,1768529453709,-557.51,0.00035616,10]
[402120074,1768529453719,-1061.23,0.00035616,10]
[402120075,1768529453730,-722.76,0.00035616,10]
[402120076,1768529453740,-151.0,0.00035616,31]
[402120077,1768529453750,-500.0,0.00035616,10]
[402120078,1768529453761,-151.0,0.00035616,31]
[402120079,1768529453771,-264.938629,0.00035616,31]
[402120080,1768529453781,-500.0,0.00035616,10]
[402120081,1768529453791,-626.91,0.00035616,10]
[402120082,1768529453801,-552.98,0.00035616,10]
[402120083,1768529453811,-500.0,0.00035616,10]
[402120084,1768529453822,-500.93322505,0.00035616,10]
[402120085,1768529453832,-500.0,0.00035616,10]
[402120086,1768529453842,-300.0,0.00035616,2]
[402120087,1768529453853,-517.0857245,0.00035616,10]
[402120088,1768529453863,-588.46015877,0.00035616,10]
[402120089,1768529453874,-500.0,0.00035616,10]
[402120090,1768529453884,-1252.63,0.00035616,10]
[402120091,1768529453895,-500.0,0.00035616,10]
[402120092,1768529453906,-504.74330346,0.00035616,10]
[402120093,1768529453916,-637.22,0.00035616,10]
[402120094,1768529453926,-503.12517423,0.00035616,10]
[402120095,1768529453937,-500.0,0.00035616,10]
[402120096,1768529453947,-500.0,0.00035616,10]
[402120097,1768529453958,-500.0,0.00035616,10]
[402120098,1768529453969,-576.31138137,0.00035616,10]
[402120099,1768529453979,-658.19,0.00035616,10]
[402120100,1768529453989,-500.0,0.00035616,10]
[402120101,1768529453999,-503.51736951,0.00035616,10]
[402120102,1768529454010,-935.53,0.00035616,10]
[402120103,1768529454025,-500.0,0.00035616,10]
[402120104,1768529454036,-500.0,0.00035616,10]
[402120105,1768529454047,-342.36586733,0.00035616,10]
[402120106,1768529454058,-453.81669589,0.00035616,10]
[402120107,1768529454070,-279.98633563,0.00035616,10]
[402120108,1768529454081,-500.0,0.00035616,10]
[402120109,1768529454092,-513.18356729,0.00035616,10]
[402120110,1768529454104,-578.18597387,0.00035616,10]
[402120111,1768529454114,-1000.0,0.00035616,10]
[402120112,1768529454125,-500.0,0.00035616,10]
[402120113,1768529454135,-500.0,0.00035616,10]
[402120114,1768529454145,-503.90503522,0.00035616,10]
[402120115,1768529454155,-500.0,0.00035616,10]
[402120116,1768529454165,-1278.48,0.00035616,10]
[402120117,1768529454179,-505.73862204,0.00035616,10]
[402120118,1768529454191,-198.89847631,0.00035616,120]
[402120119,1768529454201,-772.62,0.00035616,10]
[402120120,1768529454213,-2596.47,0.00035616,10]
[402120121,1768529454223,-588.43954939,0.00035616,10]
[402120122,1768529454233,-507.2834974,0.00035616,10]
[402120123,1768529454243,-500.0,0.00035616,10]
[402120124,1768529454256,-1044.25,0.00035616,10]
[402120125,1768529454266,-540.98,0.00035616,10]
[402120126,1768529454276,-1034.79,0.00035616,10]
[402120127,1768529454286,-500.0,0.00035616,10]
[402120128,1768529454296,-500.0,0.00035616,10]
[402120129,1768529454307,-500.0,0.00035616,10]
[402120130,1768529454318,-510.15817926,0.00035616,10]
[402120131,1768529454328,-184.673082,0.00035616,31]
[402120132,1768529454338,-500.0,0.00035616,10]
[402120133,1768529454349,-500.0,0.00035616,10]
[402120134,1768529454359,-1267.44,0.00035616,10]
[402120135,1768529454368,-555.28203727,0.00035616,10]
[402120136,1768529454378,-500.0,0.00035616,10]
[402120137,1768529454388,-530.10292245,0.00035616,10]
[402120138,1768529454398,-979.07,0.00035616,10]
[402120139,1768529454408,-500.0,0.00035616,10]
[402120140,1768529454418,-696.04,0.00035616,10]
[402120141,1768529454428,-500.0,0.00035616,10]
[402120142,1768529454438,-500.0,0.00035616,10]
[402120143,1768529454448,-500.0,0.00035616,10]
[402120144,1768529454459,-500.0,0.00035616,10]
[402120145,1768529454472,-500.0,0.00035616,10]
[402120146,1768529454482,-1317.52,0.00035616,10]
[402120147,1768529454492,-754.81,0.00035616,10]
[402120148,1768529454502,-500.0,0.00035616,10]
[402120149,1768529454511,-858.34,0.00035616,10]
[402120150,1768529454521,-500.0,0.00035616,10]
[402120151,1768529454531,-503.77962422,0.00035616,10]
[402120152,1768529454541,-661.84,0.00035616,10]
[402120153,1768529454550,-380.509999,0.00035616,28]
[402120154,1768529454560,-380.509999,0.00035616,28]
[402120155,1768529454570,-500.0,0.00035616,10]
[402120156,1768529454580,-500.0,0.00035616,10]
[402120157,1768529454590,-500.0,0.00035616,10]
[402120158,1768529454600,-733.71,0.00035616,10]
[402120159,1768529454610,-500.0,0.00035616,10]
[402120160,1768529454620,-380.509999,0.00035616,28]
[402120161,1768529454630,-380.509999,0.00035616,28]
[402120162,1768529454639,-578.81342787,0.00035616,10]
[402120163,1768529454649,-380.509999,0.00035616,28]
[402120164,1768529454659,-380.509999,0.00035616,28]
[402120165,1768529454668,-500.0,0.00035616,10]
[402120166,1768529454678,-380.509999,0.00035616,28]
[402120167,1768529454688,-500.0,0.00035616,10]
[402120168,1768529454699,-380.509999,0.00035616,28]
[402120169,1768529454709,-890.89,0.00035616,10]
[402120170,1768529454719,-1982.33,0.00035616,10]
[402120171,1768529454728,-517.42,0.00035616,10]
[402120172,1768529454738,-368.78012828,0.00035616,10]
[402120173,1768529454748,-500.0,0.00035616,10]
[402120174,1768529454759,-500.0,0.00035616,10]
[402120175,1768529454768,-500.0,0.00035616,10]
[402120176,1768529454781,-500.0,0.00035616,10]
[402120177,1768529454791,-580.6176654,0.00035616,10]
[402120178,1768529454801,-500.0,0.00035616,10]
[402120179,1768529454810,-505.37667428,0.00035616,10]
[402120180,1768529454820,-500.0,0.00035616,10]
[402120181,1768529454830,-1022.34,0.00035616,10]
[402120182,1768529454840,-500.0,0.00035616,10]
[402120183,1768529454850,-1689.93,0.00035616,10]
[402120184,1768529454860,-1043.41,0.00035616,10]
[402120185,1768529454870,-650.83,0.00035616,10]
[402120186,1768529454881,-504.68868501,0.00035616,10]
[402120187,1768529454891,-500.0,0.00035616,10]
[402120188,1768529454901,-1998.84,0.00035616,10]
[402120189,1768529454911,-620.61233462,0.00035616,10]